bitfinex/quotes_BTCUSD_20251212
["timestamp","ask_amount","ask_price","bid_price","bid_amount"]
[1765580758886,0.00023819,90418.0,90417.0,0.04804]
[1765580759302,0.00023819,90418.0,90417.0,0.04831274]
[1765580759719,0.00023819,90418.0,90417.0,0.09151274]
[1765580760286,0.00023819,90418.0,90417.0,0.02364274]
[1765580760691,0.00023819,90418.0,90417.0,0.04831274]
[1765580761374,0.00023819,90418.0,90417.0,0.09151274]
[1765580764193,0.00023819,90418.0,90417.0,0.04831274]
[1765580764330,0.00023819,90418.0,90417.0,0.09151274]
[1765580765720,0.00023819,90418.0,90417.0,0.04831274]
[1765580768814,0.00023819,90418.0,90417.0,0.04431274]
[1765580769016,0.00023819,90418.0,90417.0,0.04131274]
[1765580769224,0.00023819,90418.0,90417.0,0.05031274]
[1765580769681,0.00023819,90418.0,90417.0,0.07243247]
[1765580769801,0.00023819,90418.0,90417.0,0.05031274]
[1765580770604,0.00023819,90418.0,90417.0,0.04631274]
[1765580770826,0.00023819,90418.0,90417.0,0.04131274]
[1765580771231,0.00023819,90418.0,90417.0,0.04731274]
[1765580771897,0.00023819,90418.0,90417.0,0.05231274]
[1765580773118,0.00023819,90418.0,90417.0,0.09551274]
[1765580773562,0.00023819,90418.0,90417.0,0.05231274]
[1765580777606,0.00023819,90418.0,90417.0,0.06979274]
[1765580805832,0.00023819,90418.0,90417.0,0.011]
[1765580806005,0.00157832,90418.0,90417.0,0.011]
[1765580806561,0.00157832,90418.0,90417.0,0.005]
[1765580806805,0.00157832,90418.0,90406.0,0.01106121]
[1765580806806,0.232272,90412.0,90411.0,0.0432]
[1765580807199,0.232272,90412.0,90411.0,0.0665]
[1765580809234,0.232272,90412.0,90411.0,0.0755]
[1765580810623,0.232272,90412.0,90411.0,0.10257]
[1765580811357,0.01106047,90412.0,90411.0,0.10257]
[1765580816049,0.01106047,90412.0,90411.0,0.0522]
[1765580816260,0.01106047,90412.0,90411.0,0.009]
[1765580817038,0.01106072,90410.0,90406.0,0.02303121]
[1765580817208,0.01106084,90409.0,90406.0,0.04721121]
[1765580817614,0.01106084,90409.0,90407.0,0.02418]
[1765580818899,0.01106084,90409.0,90408.0,0.0151]
[1765580819400,0.01106084,90409.0,90408.0,0.03928]
[1765580820405,0.01106084,90409.0,90408.0,0.0151]
[1765580820601,0.01106084,90409.0,90408.0,0.0231]
[1765580820806,0.01106084,90409.0,90408.0,0.04728]
[1765580821747,0.22120011,90416.0,90409.0,0.23227775]
[1765580821748,0.23226507,90414.0,90409.0,0.23227775]
[1765580821954,0.23226507,90414.0,90413.0,0.07027]
[1765580822263,0.23226491,90414.0,90413.0,0.09445]
[1765580822529,0.01263806,90418.0,90413.0,0.09445]
[1765580822530,0.00023819,90418.0,90415.0,0.01106011]
[1765580822733,0.22143308,90418.0,90417.0,0.0583]
[1765580822870,0.22143308,90418.0,90417.0,0.05857274]
[1765580823067,0.22143308,90418.0,90417.0,0.08275274]
[1765580824281,0.22143308,90418.0,90417.0,0.08675274]
[1765580824692,0.00023819,90418.0,90417.0,0.08675274]
[1765580826836,0.00023819,90418.0,90417.0,0.09075274]
[1765580840580,0.00023819,90418.0,90417.0,0.10275274]
[1765580849876,0.00928672,90424.0,90423.0,0.07058]
[1765580850437,0.00928672,90424.0,90423.0,0.09456]
[1765580850991,0.00928672,90424.0,90423.0,0.09856]
[1765580851215,0.23247416,90426.0,90425.0,0.0432]
[1765580851419,0.23247416,90426.0,90425.0,0.08256]
[1765580852567,0.23247416,90426.0,90425.0,0.08556]
[1765580853173,0.23247416,90426.0,90425.0,0.08756]
[1765580853579,0.23247416,90426.0,90425.0,0.06358]
[1765580853958,0.23247416,90426.0,90425.0,0.0482]
[1765580854545,0.23381429,90426.0,90425.0,0.0482]
[1765580854746,0.23381429,90426.0,90425.0,0.005]
[1765580855343,0.23381429,90426.0,90425.0,0.002]
[1765580855805,0.23381429,90426.0,90425.0,0.005]
[1765580856009,0.23381429,90426.0,90425.0,0.003]
[1765580856451,0.23381429,90426.0,90425.0,0.005]
[1765580869051,0.52451429,90426.0,90425.0,0.005]
[1765580869246,0.54840829,90426.0,90425.0,0.005]
[1765580869407,0.59906898,90426.0,90425.0,0.005]
[1765580869813,0.59906898,90426.0,90425.0,0.002]
[1765580870173,0.2212143,90411.0,90409.0,0.0432]
[1765580870370,0.02211765,90410.0,90409.0,0.0432]
[1765580871274,0.02211765,90410.0,90409.0,0.04347274]
[1765580871521,0.02211765,90410.0,90409.0,0.09421274]
[1765580871932,0.04428006,90421.0,90414.0,0.01106023]
[1765580872135,0.01105986,90417.0,90416.0,0.0432]
[1765580872541,0.01105986,90417.0,90416.0,0.06991]
[1765580873087,0.01105986,90417.0,90416.0,0.09394]
[1765580873660,0.01105986,90417.0,90416.0,0.09794]
[1765580874929,0.01105986,90417.0,90416.0,0.10094]
[1765580875328,0.01105986,90417.0,90416.0,0.06163]
[1765580875939,0.01105986,90417.0,90416.0,0.10094]
[1765580891220,0.01105986,90417.0,90416.0,0.07691]
[1765580893793,0.01105986,90417.0,90416.0,0.0502]
[1765580894279,0.01105986,90417.0,90416.0,0.007]
[1765580900829,0.01105986,90417.0,90416.0,0.003]
[1765580901136,0.22121202,90411.0,90409.0,0.01170274]
[1765580901339,0.02211765,90410.0,90409.0,0.01170274]
[1765580901893,0.02211765,90410.0,90409.0,0.02734274]
[1765580902076,0.02211765,90410.0,90409.0,0.05201274]
[1765580902461,0.02211765,90410.0,90409.0,0.05701274]
[1765580903248,0.02211765,90410.0,90409.0,0.06101274]
[1765580903449,0.02211765,90410.0,90409.0,0.05601274]
[1765580903806,0.02211765,90410.0,90409.0,0.06101274]
[1765580908330,0.02211765,90410.0,90409.0,0.03634274]
[1765580908676,0.02211765,90410.0,90409.0,0.06101274]
[1765580921510,0.02211765,90410.0,90409.0,0.009]
[1765580921711,0.05534173,90410.0,90409.0,0.009]
[1765580922470,0.05534173,90410.0,90409.0,0.005]
[1765580922676,0.2212218,90407.0,90405.0,0.03675]
[1765580922932,0.01106072,90410.0,90409.0,0.07692]
[1765580923074,0.03317837,90410.0,90409.0,0.07692]
[1765580923273,0.03317837,90410.0,90409.0,0.10159]
[1765580923495,0.03317837,90410.0,90409.0,0.09759]
[1765580923702,0.03317837,90410.0,90409.0,0.10059]
[1765580924152,0.03317837,90410.0,90409.0,0.09759]
[1765580924558,0.03317837,90410.0,90409.0,0.09959]
[1765580925516,0.03317837,90410.0,90409.0,0.10259]
[1765580926919,0.03317837,90410.0,90409.0,0.07792]
[1765580928831,0.03317837,90410.0,90409.0,0.10259]
[1765580929183,0.01106072,90410.0,90409.0,0.10259]
[1765580929390,0.03317837,90410.0,90409.0,0.10259]
[1765580932117,0.03317837,90410.0,90409.0,0.10101]
[1765580940008,0.03317837,90410.0,90409.0,0.07792]
[1765580940151,0.03317837,90410.0,90409.0,0.10101]
[1765580940625,0.03317837,90410.0,90409.0,0.07792]
[1765580940772,0.03317837,90410.0,90409.0,0.06228]
[1765580940975,0.03317837,90410.0,90409.0,0.0502]
[1765580941620,0.03317837,90410.0,90409.0,0.08897]
[1765580943605,0.03317837,90410.0,90409.0,0.06588]
[1765580944388,0.03317837,90410.0,90409.0,0.0502]
[1765580947778,0.03317837,90410.0,90409.0,0.007]
[1765580952848,0.03317837,90410.0,90409.0,0.004]
[1765580953052,0.03317837,90410.0,90409.0,0.007]
[1765580953581,0.03317837,90410.0,90409.0,0.003]
[1765580953738,0.03317837,90410.0,90409.0,0.007]
[1765580984404,0.47127837,90410.0,90409.0,0.007]
[1765580984557,0.52838846,90410.0,90409.0,0.007]
[1765580985391,0.52838846,90410.0,90409.0,0.004]
[1765580985756,0.22123404,90402.0,90401.0,0.0432]
[1765580986575,0.25446128,90402.0,90401.0,0.0432]
[1765580986976,0.2545083,90402.0,90401.0,0.0432]
[1765580987394,0.2545083,90402.0,90401.0,0.0452]
[1765580988293,0.2545083,90402.0,90401.0,0.0482]
[1765580995643,0.2545083,90402.0,90401.0,0.005]
[1765580997895,0.2545083,90402.0,90401.0,0.002]
[1765580998255,0.2545083,90402.0,90401.0,0.005]
[1765580999199,0.2545083,90402.0,90401.0,0.003]
[1765580999405,0.2545083,90402.0,90401.0,0.005]
[1765581000890,0.4019083,90402.0,90401.0,0.005]
[1765581001287,0.6926083,90402.0,90401.0,0.005]
[1765581002149,0.4019083,90402.0,90401.0,0.10057]
[1765581002357,0.14744702,90402.0,90401.0,0.05764274]
[1765581002814,0.14744702,90402.0,90401.0,0.10084274]
[1765581003023,0.14744702,90402.0,90401.0,0.09784274]
[1765581003227,0.14744702,90402.0,90401.0,0.09584274]
[1765581003431,0.14744702,90402.0,90401.0,0.09984274]
[1765581003647,0.14744702,90402.0,90401.0,0.10384274]
[1765581003826,0.14744702,90402.0,90401.0,0.09984274]
[1765581003983,0.14744702,90402.0,90401.0,0.10484274]
[1765581004707,0.14744702,90402.0,90401.0,0.09984274]
[1765581004913,0.14744702,90402.0,90401.0,0.10484274]
[1765581005128,0.14744702,90402.0,90401.0,0.10084274]
[1765581005551,0.14744702,90402.0,90401.0,0.10484274]
[1765581006773,4.702e-05,90402.0,90401.0,0.10484274]
[1765581008840,4.702e-05,90402.0,90401.0,0.12228274]
[1765581060881,4.702e-05,90402.0,90401.0,0.009]
[1765581061024,0.03327419,90402.0,90401.0,0.009]
[1765581061641,0.03327419,90402.0,90401.0,0.004]
[1765581061876,0.22123649,90401.0,90399.0,0.0432]
[1765581062541,0.03322717,90400.0,90399.0,0.0432]
[1765581063313,0.03322717,90400.0,90399.0,0.0452]
[1765581063511,0.03322717,90400.0,90399.0,0.0432]
[1765581064024,0.03322717,90400.0,90399.0,0.0452]
[1765581064395,0.03322717,90400.0,90399.0,0.0482]
[1765581064899,0.03322717,90400.0,90399.0,0.0452]
[1765581065775,0.03322717,90400.0,90399.0,0.0492]
[1765581080088,0.03322717,90400.0,90399.0,0.006]
[1765581083961,0.18062717,90400.0,90399.0,0.006]
[1765581086105,0.22127565,90385.0,90384.0,0.02453]
[1765581086706,0.22127565,90385.0,90384.0,0.04118]
[1765581087481,0.23233641,90387.0,90384.0,0.04145274]
[1765581087683,0.02211765,90386.0,90385.0,0.02453]
[1765581087903,0.02211765,90386.0,90385.0,0.02480274]
[1765581088106,0.02211765,90386.0,90385.0,0.04145274]
[1765581089508,0.02211765,90386.0,90385.0,0.04645274]
[1765581090098,0.02211765,90386.0,90385.0,0.05045274]
[1765581095271,0.01106341,90388.0,90385.0,0.06151652]
[1765581095498,0.01106329,90389.0,90387.0,0.01665]
[1765581095716,0.01106329,90389.0,90388.0,0.07134]
[1765581096185,0.01106329,90389.0,90388.0,0.09587]
[1765581097450,0.01106329,90389.0,90388.0,0.09887]
[1765581098367,0.01106329,90389.0,90388.0,0.10387]
[1765581101331,0.01106329,90389.0,90388.0,0.104155]
[1765581114488,0.01106243,90396.0,90388.0,0.06122774]
[1765581114711,0.01106243,90396.0,90395.0,0.0272]
[1765581114712,0.23231115,90396.0,90395.0,0.0272]
[1765581115110,0.23231115,90396.0,90395.0,0.05147]
[1765581115899,0.23231115,90396.0,90395.0,0.0272]
[1765581116514,0.23231115,90396.0,90395.0,0.0332]
[1765581116933,0.23231115,90396.0,90395.0,0.0312]
[1765581117134,0.23231115,90396.0,90395.0,0.0272]
[1765581117525,0.23231115,90396.0,90395.0,0.0302]
[1765581118378,0.23231115,90396.0,90395.0,0.0342]
[1765581120742,0.23231115,90396.0,90395.0,0.01865]
[1765581121462,0.23231115,90396.0,90395.0,0.007]
[1765581123807,0.23231115,90396.0,90395.0,0.04682]
[1765581128730,0.15846194,90400.0,90395.0,0.04709274]
[1765581128933,0.23230794,90398.0,90396.0,0.02427]
[1765581129119,0.23230794,90398.0,90396.0,0.02454274]
[1765581129260,0.23230794,90398.0,90397.0,0.01555]
[1765581129458,0.23230794,90398.0,90397.0,0.01582274]
[1765581129665,0.23230794,90398.0,90397.0,0.08329274]
[1765581130776,0.23230794,90398.0,90397.0,0.08629274]
[1765581131256,0.23230794,90398.0,90397.0,0.09029274]
[1765581136553,4.702e-05,90402.0,90397.0,0.09029274]
[1765581136554,4.702e-05,90402.0,90399.0,0.01106206]
[1765581136850,4.702e-05,90402.0,90401.0,0.24843649]
[1765581136986,4.702e-05,90402.0,90401.0,0.24870923]
[1765581137190,0.03699683,90413.0,90409.0,0.22121691]
[1765581137434,0.03699683,90413.0,90412.0,0.24840957]
[1765581137639,0.03699683,90413.0,90412.0,0.02747274]
[1765581137839,0.03699683,90413.0,90412.0,0.05174274]
[1765581138015,0.03699683,90413.0,90412.0,0.09494274]
[1765581139039,0.03699683,90413.0,90412.0,0.09794274]
[1765581139782,0.03699683,90413.0,90412.0,0.10194274]
[1765581140463,0.03699683,90413.0,90412.0,0.32315231]
[1765581141633,0.03699683,90413.0,90412.0,0.10194274]
[1765581142599,0.03699683,90413.0,90412.0,0.05874274]
[1765581146886,0.03498332,90413.0,90412.0,0.05874274]
[1765581148103,0.15845925,90422.0,90412.0,0.05874274]
[1765581148104,0.01105754,90436.0,90425.0,0.26437777]
[1765581148316,0.0002852,90426.0,90425.0,0.08883274]
[1765581148515,0.0002852,90426.0,90425.0,0.11242274]
[1765581148916,0.0002852,90426.0,90425.0,0.12348077]
[1765581149515,0.0002852,90426.0,90425.0,0.12848077]
[1765581150149,0.0002852,90426.0,90425.0,0.08528077]
[1765581150638,0.0002852,90426.0,90425.0,0.09128077]
[1765581151247,0.0002852,90426.0,90425.0,0.13448077]
[1765581152656,0.0002852,90426.0,90425.0,0.09128077]
[1765581153248,0.0002852,90426.0,90425.0,0.13448077]
[1765581163507,0.0002852,90426.0,90425.0,0.12342274]
[1765581168389,0.0002852,90426.0,90425.0,0.08022274]
[1765581170654,0.0002852,90426.0,90425.0,0.14554051]
[1765581171518,0.0002852,90426.0,90425.0,0.12342274]
[1765581172908,0.0002852,90426.0,90425.0,0.14554039]
[1765581173292,0.0002852,90426.0,90425.0,0.16329266]
[1765581175051,0.0002852,90426.0,90425.0,0.14554039]
[1765581175705,0.0002852,90426.0,90425.0,0.16765816]
[1765581175907,0.0002852,90426.0,90425.0,0.14554039]
[1765581176365,0.0002852,90426.0,90425.0,0.16765816]
[1765581176917,0.0002852,90426.0,90425.0,0.14554039]
[1765581177543,0.0002852,90426.0,90425.0,0.12342274]
[1765581178321,0.0002852,90426.0,90425.0,0.1344804]
[1765581182240,0.0002852,90426.0,90425.0,0.15659817]
[1765581183511,0.0002852,90426.0,90425.0,0.1344804]
[1765581186617,0.0002852,90426.0,90425.0,0.12342274]
[1765581187173,0.0002852,90426.0,90425.0,0.06278274]
[1765581187424,0.0002852,90426.0,90425.0,0.06251]
[1765581187624,0.0002852,90426.0,90425.0,0.011]
[1765581188442,0.0002852,90426.0,90425.0,0.006]
[1765581188667,0.0002852,90426.0,90425.0,0.011]
[1765581188809,0.0002852,90426.0,90425.0,0.005]
[1765581189212,0.22117777,90425.0,90424.0,0.0432]
[1765581189595,0.22117777,90425.0,90424.0,0.06637]
[1765581189845,0.0002852,90426.0,90424.0,0.06637]
[1765581190047,0.0002852,90426.0,90425.0,0.0482]
[1765581190684,0.0002852,90426.0,90425.0,0.0432]
[1765581191929,0.0002852,90426.0,90425.0,0.0472]
[1765581192353,0.0002852,90426.0,90425.0,0.0522]
[1765581193599,0.0002852,90426.0,90425.0,0.03217]
[1765581194329,0.0002852,90426.0,90425.0,0.06097]
[1765581195936,0.0002852,90426.0,90425.0,0.0378]
[1765581196161,0.0002852,90426.0,90425.0,0.06097]
[1765581200194,0.0002852,90426.0,90425.0,0.28214777]
[1765581200395,0.0002852,90426.0,90425.0,0.32534777]
[1765581200821,0.0002852,90426.0,90425.0,0.28214777]
[1765581206955,0.0002852,90426.0,90425.0,0.28242051]
[1765581208029,0.0002852,90426.0,90425.0,0.32562051]
[1765581208223,0.0002852,90426.0,90425.0,0.32162051]
[1765581208448,0.0002852,90426.0,90425.0,0.31662051]
[1765581208668,0.0002852,90426.0,90425.0,0.32162051]
[1765581208850,0.0002852,90426.0,90425.0,0.32762051]
[1765581226325,0.0002852,90426.0,90425.0,0.28442051]
[1765581226488,0.0002852,90426.0,90425.0,0.31762793]
[1765581226713,2.335e-05,90426.0,90425.0,0.60832793]
[1765581226920,2.335e-05,90426.0,90425.0,0.65152793]
[1765581227132,2.335e-05,90426.0,90425.0,0.64552793]
[1765581227534,2.335e-05,90426.0,90425.0,0.64052793]
[1765581236663,0.0002,90450.0,90449.0,0.0432]
[1765581236866,0.0002,90450.0,90449.0,0.07084274]
[1765581236867,0.00058654,90450.0,90449.0,0.07084274]
[1765581237082,0.00058654,90450.0,90449.0,0.09579274]
[1765581238267,0.00058654,90450.0,90449.0,0.09879274]
[1765581238886,0.00058654,90450.0,90449.0,0.10279274]
[1765581240853,0.00192667,90450.0,90449.0,0.007]
[1765581241332,0.14932667,90450.0,90449.0,0.007]
[1765581241582,0.14932667,90450.0,90449.0,0.004]
[1765581241788,0.01105766,90435.0,90432.0,0.06607803]
[1765581242084,0.02211765,90436.0,90435.0,0.01105766]
[1765581242389,0.02211765,90436.0,90435.0,0.02660766]
[1765581242593,0.02211765,90436.0,90435.0,0.05155766]
[1765581242978,0.01105656,90444.0,90440.0,0.27539693]
[1765581243160,0.01105632,90446.0,90441.0,0.24774388]
[1765581243364,0.01105644,90445.0,90442.0,0.0110568]
[1765581243557,0.01105644,90445.0,90442.0,0.0360068]
[1765581243882,0.01105632,90446.0,90442.0,0.0110568]
[1765581244078,0.01105632,90446.0,90443.0,0.02495]
[1765581244635,0.23218447,90446.0,90443.0,0.02495]
[1765581245373,0.22112886,90445.0,90443.0,0.02495]
[1765581245803,0.22112886,90445.0,90444.0,0.01555]
[1765581246324,0.22112886,90445.0,90444.0,0.0405]
[1765581246560,0.01105632,90446.0,90445.0,0.0432]
[1765581246734,0.01105632,90446.0,90445.0,0.06815]
[1765581247371,0.01105632,90446.0,90445.0,0.0432]
[1765581248184,0.01105632,90446.0,90445.0,0.0462]
[1765581248594,0.01165157,90446.0,90445.0,0.0462]
[1765581248963,0.01165157,90446.0,90445.0,0.0502]
[1765581256949,0.01165157,90446.0,90445.0,0.0475]
[1765581257383,0.00059525,90446.0,90445.0,0.0475]
[1765581259485,0.00059525,90446.0,90445.0,0.007]
[1765581262818,0.29129525,90446.0,90445.0,0.007]
[1765581263026,0.01241525,90446.0,90445.0,0.007]
[1765581263428,0.232237,90425.0,90421.0,0.01105937]
[1765581263635,0.232237,90425.0,90420.0,0.0110595]
[1765581263636,0.02211765,90422.0,90420.0,0.0110595]
[1765581264288,0.02211765,90422.0,90418.0,0.0432]
[1765581264289,0.01105937,90421.0,90418.0,0.0432]
[1765581264473,0.23224915,90421.0,90418.0,0.0432]
[1765581264672,0.01105937,90421.0,90418.0,0.0432]
[1765581264982,0.01105937,90421.0,90420.0,0.005]
[1765581265752,0.02211765,90422.0,90420.0,0.005]
[1765581265966,0.02211765,90422.0,90420.0,0.00527274]
[1765581266165,0.02211765,90422.0,90420.0,0.00027274]
[1765581266846,0.02211765,90422.0,90420.0,0.00627274]
[1765581267049,0.02211765,90422.0,90420.0,0.01127274]
[1765581272315,0.02211765,90422.0,90420.0,0.00627274]
[1765581272515,0.02211765,90422.0,90420.0,0.00027274]
[1765581272713,0.02211765,90422.0,90420.0,0.00927274]
[1765581276522,0.24330467,90422.0,90420.0,0.00927274]
[1765581283490,0.02211765,90422.0,90420.0,0.00927274]
[1765581286121,0.24330418,90422.0,90420.0,0.00927274]
[1765581286397,0.02211765,90422.0,90420.0,0.00927274]
[1765581288444,0.24330443,90422.0,90420.0,0.00927274]
[1765581292186,0.24330443,90422.0,90420.0,0.009]
[1765581293464,0.22122184,90407.0,90406.0,0.0432]
[1765581293682,0.22160814,90407.0,90406.0,0.0432]
[1765581294742,0.22160814,90407.0,90406.0,0.0492]
[1765581294942,0.22160814,90407.0,90406.0,0.0542]
[1765581296493,0.22120846,90413.0,90406.0,0.0542]
[1765581296494,0.03002257,90434.0,90406.0,0.05009274]
[1765581296693,0.03002257,90434.0,90433.0,0.2211582]
[1765581296694,0.00023813,90434.0,90433.0,0.2211582]
[1765581296920,0.00023813,90434.0,90433.0,0.29016094]
[1765581297563,0.00023813,90434.0,90433.0,0.33336094]
[1765581297964,0.00023813,90434.0,90433.0,0.33836094]
[1765581298951,0.00023813,90434.0,90433.0,0.34436094]
[1765581300090,0.00023813,90434.0,90433.0,0.33936094]
[1765581300296,0.00023813,90434.0,90433.0,0.33336094]
[1765581300488,0.00023813,90434.0,90433.0,0.34636094]
[1765581301624,0.00023813,90434.0,90433.0,0.27260094]
[1765581302030,0.00023813,90434.0,90433.0,0.34536094]
[1765581302714,0.00023813,90434.0,90433.0,0.33936094]
[1765581302919,0.00023813,90434.0,90433.0,0.34536094]
[1765581305897,0.00023813,90434.0,90433.0,0.59286094]
[1765581306200,0.00023813,90434.0,90433.0,0.63606094]
[1765581313276,0.00023813,90434.0,90433.0,0.59286094]
[1765581313604,0.00023813,90434.0,90433.0,0.63606094]
[1765581314019,0.00023813,90434.0,90433.0,0.05547274]
[1765581315180,0.00023813,90434.0,90433.0,0.04947274]
[1765581315660,0.00023813,90434.0,90433.0,0.07103274]
[1765581315820,0.00023813,90434.0,90433.0,0.07603274]
[1765581316030,0.00023813,90434.0,90433.0,0.10376274]
[1765581324239,0.00023813,90434.0,90433.0,0.06056274]
[1765581325235,0.00023813,90434.0,90433.0,0.10376274]
[1765581339003,0.00023813,90434.0,90433.0,0.06056274]
[1765581339247,0.00023813,90434.0,90433.0,0.10376274]
[1765581340011,0.00023813,90434.0,90433.0,0.09976274]
[1765581340268,0.00023813,90434.0,90433.0,0.10576274]
[1765581340483,0.00023813,90434.0,90433.0,0.10076274]
[1765581341186,0.00023813,90434.0,90433.0,0.10776274]
[1765581358443,0.00023813,90434.0,90433.0,0.06456274]
[1765581359472,0.00023813,90434.0,90433.0,0.10776274]
[1765581365747,0.00023813,90434.0,90433.0,0.06456274]
[1765581366877,0.00023813,90434.0,90433.0,0.10776274]
[1765581375377,0.00023813,90434.0,90433.0,0.01327274]
[1765581375932,0.00023813,90434.0,90433.0,0.05647274]
[1765581376128,0.00023813,90434.0,90433.0,0.10678274]
[1765581387312,0.00023813,90434.0,90433.0,0.04089274]
[1765581387515,0.00023813,90434.0,90433.0,0.06579274]
[1765581387999,0.00023813,90434.0,90433.0,0.10899274]
[1765581390352,0.00023813,90434.0,90433.0,0.08409274]
[1765581390944,0.00023813,90434.0,90433.0,0.10899274]
[1765581392965,0.00023813,90434.0,90433.0,0.08409274]
[1765581394606,0.00023813,90434.0,90433.0,0.06877274]
[1765581395338,0.00023813,90434.0,90433.0,0.01327274]
[1765581396503,0.00023813,90434.0,90433.0,0.05647274]
[1765581397577,0.00023813,90434.0,90433.0,0.10890274]
[1765581400124,0.00023813,90434.0,90433.0,0.06570274]
[1765581401072,0.00023813,90434.0,90433.0,0.10890274]
[1765581404772,0.00023813,90434.0,90433.0,0.13101856]
[1765581405158,0.00023813,90434.0,90433.0,0.10890274]
[1765581413706,0.00023813,90434.0,90433.0,0.13101856]
[1765581413941,0.00023813,90434.0,90433.0,0.10890274]
[1765581415740,0.00023813,90434.0,90433.0,0.13101856]
[1765581419004,0.00023813,90434.0,90433.0,0.16422598]
[1765581419759,0.00023813,90434.0,90433.0,0.14211016]
[1765581419963,0.00023813,90434.0,90433.0,0.09891016]
[1765581420579,0.00023813,90434.0,90433.0,0.14211016]
[1765581421241,0.00023813,90434.0,90433.0,0.09891016]
[1765581421412,0.00023813,90434.0,90433.0,0.09145016]
[1765581421784,0.00023813,90434.0,90433.0,0.05853016]
[1765581421988,0.00023813,90434.0,90433.0,0.02532274]
[1765581422184,0.00023813,90434.0,90433.0,0.23443094]
[1765581422392,0.00023813,90434.0,90433.0,0.27763094]
[1765581422974,0.00023813,90434.0,90433.0,0.05647274]
[1765581425517,0.00023813,90434.0,90433.0,0.01327274]
[1765581425741,0.22139389,90434.0,90433.0,0.0562]
[1765581425951,0.22273402,90434.0,90433.0,0.013]
[1765581426262,0.25594783,90434.0,90433.0,0.013]
[1765581430683,0.25594783,90434.0,90433.0,0.007]
[1765581430940,0.25594783,90434.0,90433.0,0.011]
[1765581431679,0.25594783,90434.0,90433.0,0.004]
[1765581432020,0.25594783,90434.0,90433.0,0.009]
[1765581440386,0.40334783,90434.0,90433.0,0.009]
[1765581449448,0.40334783,90434.0,90433.0,0.005]
[1765581449751,0.40334783,90434.0,90433.0,0.008]
[1765581449949,0.40334783,90434.0,90433.0,0.003]
[1765581450122,0.40334783,90434.0,90433.0,0.007]
[1765581457992,0.44654783,90434.0,90433.0,0.007]
[1765581458196,0.40334783,90434.0,90433.0,0.007]
[1765581468471,0.43311413,90434.0,90433.0,0.007]
[1765581472460,0.42490513,90434.0,90433.0,0.007]
[1765581473629,0.39513883,90434.0,90433.0,0.007]
[1765581483758,0.21318489,90434.0,90433.0,0.00727274]
[1765581483963,0.21318489,90434.0,90433.0,0.07312274]
[1765581484743,0.21318489,90434.0,90433.0,0.06912274]
[1765581484934,0.21318489,90434.0,90433.0,0.07112274]
[1765581486332,0.21318489,90434.0,90433.0,0.07512274]
[1765581488678,0.21318489,90434.0,90433.0,0.05247274]
[1765581491281,0.21318489,90434.0,90433.0,0.009]
[1765581491693,0.21318489,90434.0,90433.0,0.0522]
[1765581492574,0.21318489,90434.0,90433.0,0.009]
[1765581496996,0.21318489,90434.0,90433.0,0.10171]
[1765581498144,0.20532317,90434.0,90433.0,0.10171]
[1765581501837,0.20532317,90434.0,90433.0,0.0522]
[1765581510411,0.20532317,90434.0,90433.0,0.05185733]
[1765581521109,0.2066633,90434.0,90433.0,0.00865733]
[1765581522640,0.2241033,90434.0,90433.0,0.00865733]
[1765581522842,0.25732109,90434.0,90433.0,0.00865733]
[1765581529097,0.30733948,90434.0,90433.0,0.00865733]
[1765581529329,0.74543948,90434.0,90433.0,0.00865733]
[1765581529526,0.79909913,90434.0,90433.0,0.00865733]
[1765581529700,0.79909913,90434.0,90433.0,0.004]
[1765581529905,0.79909913,90434.0,90433.0,0.008]
[1765581530158,0.76933283,90434.0,90433.0,0.004]
[1765581530474,0.76933283,90434.0,90433.0,0.007]
[1765581530869,0.76933283,90434.0,90406.0,4.703e-05]
[1765581530870,0.2212218,90407.0,90406.0,4.703e-05]
[1765581531163,0.24333945,90407.0,90406.0,0.04351977]
[1765581532185,0.24333945,90407.0,90406.0,0.04951977]
[1765581532966,0.24333945,90407.0,90406.0,0.05551977]
[1765581533922,0.24333945,90407.0,90406.0,0.01231977]
[1765581534503,0.24333945,90407.0,90406.0,0.05551977]
[1765581543939,0.24333945,90407.0,90406.0,0.07910977]
[1765581546796,0.24333945,90407.0,90406.0,0.09516977]
[1765581547000,0.01106035,90413.0,90410.0,0.01106072]
[1765581547182,0.23225677,90418.0,90413.0,0.01106035]
[1765581547388,0.22118706,90422.0,90417.0,0.02833]
[1765581547594,0.01105925,90422.0,90421.0,0.0432]
[1765581547835,0.2322411,90424.0,90423.0,0.0432]
[1765581548007,0.2322411,90424.0,90423.0,0.05926]
[1765581548187,0.2322411,90424.0,90423.0,0.08285]
[1765581549281,0.2322411,90424.0,90423.0,0.05926]
[1765581549451,0.2322411,90424.0,90423.0,0.06526]
[1765581550504,0.2322411,90424.0,90423.0,0.07026]
[1765581555479,0.03791137,90427.0,90424.0,0.01105901]
[1765581555749,0.03791137,90427.0,90426.0,0.07153]
[1765581555934,0.03791137,90427.0,90426.0,0.29297806]
[1765581556161,0.03791137,90427.0,90426.0,0.09539274]
[1765581556907,0.03791137,90427.0,90426.0,0.10039274]
[1765581558592,0.03791137,90427.0,90426.0,0.10639274]
[1765581558782,0.03791137,90427.0,90426.0,0.03960274]
[1765581558998,0.0392515,90427.0,90426.0,0.011]
[1765581597534,0.07247355,90427.0,90426.0,0.011]
[1765581597924,0.21987355,90427.0,90426.0,0.011]
[1765581598125,0.21987355,90427.0,90426.0,0.005]
[1765581598352,0.21987355,90427.0,90426.0,0.009]
[1765581599337,0.21987355,90427.0,90426.0,0.004]
[1765581600219,0.21987355,90427.0,90426.0,0.007]
[1765581640819,0.24972796,90427.0,90426.0,0.007]
[1765581641452,0.29292796,90427.0,90426.0,0.007]
[1765581642251,0.24972796,90427.0,90426.0,0.007]
[1765581643444,0.21987355,90427.0,90426.0,0.007]
[1765581651630,0.18196218,90427.0,90426.0,0.007]
[1765581660927,0.22516218,90427.0,90426.0,0.007]
[1765581681887,0.22382205,90427.0,90426.0,0.007]
[1765581682558,0.18062205,90427.0,90426.0,0.007]
[1765581682778,0.22382205,90427.0,90426.0,0.007]
[1765581685565,0.22516218,90427.0,90426.0,0.007]
[1765581711994,0.18196218,90427.0,90426.0,0.007]
[1765581712371,0.22516218,90427.0,90426.0,0.007]
[1765581713759,0.22516218,90427.0,90426.0,0.04777274]
[1765581713760,0.18062205,90427.0,90426.0,0.04777274]
[1765581714737,0.18062205,90427.0,90426.0,0.04377274]
[1765581715152,0.03322205,90427.0,90426.0,0.04977274]
[1765581715572,0.03322205,90427.0,90426.0,0.04677274]
[1765581715780,0.03322205,90427.0,90426.0,0.05177274]